fUST/lending_fUST_20240822
["ID","MTS","AMOUNT","RATE_DAILY","PERIOD"]
[335483611,1724263848914,-500.0,0.0003452,21]
[335483612,1724263848923,-500.0,0.0003452,21]
[335483613,1724263848932,-500.0,0.0003452,21]
[335483614,1724263848942,-500.0,0.0003452,21]
[335483615,1724263848952,-456.36,0.0003452,21]
[335483616,1724263848962,-500.0,0.0003452,21]
[335483617,1724263848971,-511.3505974,0.0003452,21]
[335483618,1724263848981,-500.0,0.0003452,21]
[335483619,1724263848990,-500.0,0.0003452,21]
[335483620,1724263849001,-500.0,0.0003452,21]
[335483621,1724263849012,-500.0,0.0003452,21]
[335483622,1724263849022,-610.5922932,0.0003452,21]
[335483623,1724263849032,-500.0,0.0003452,21]
[335483624,1724263849043,-500.0,0.0003452,21]
[335483625,1724263849054,-500.0,0.0003452,21]
[335483626,1724263849064,-500.0,0.0003452,21]
[335483627,1724263849074,-500.0,0.0003452,21]
[335483628,1724263849089,-500.0,0.0003452,21]
[335483629,1724263849099,-500.0,0.0003452,21]
[335483630,1724263849109,-500.0,0.0003452,21]
[335483631,1724263849119,-500.0,0.0003452,21]
[335483632,1724263849128,-500.0,0.0003452,21]
[335483633,1724263849138,-500.0,0.0003452,21]
[335483634,1724263849147,-330.24,0.0003452,21]
[335483635,1724263849157,-500.0,0.0003452,21]
[335483636,1724263849166,-500.0,0.0003452,21]
[335483637,1724263849176,-500.0,0.0003452,21]
[335483638,1724263849185,-500.0,0.0003452,21]
[335483639,1724263849195,-500.0,0.0003452,21]
[335483640,1724263849205,-500.0,0.0003452,21]
[335483641,1724263849214,-500.0,0.0003452,21]
[335483642,1724263849223,-500.0,0.0003452,21]
[335483643,1724263849233,-500.0,0.0003452,21]
[335483644,1724263849243,-500.0,0.0003452,21]
[335483645,1724263849254,-500.0,0.0003452,21]
[335483646,1724263849263,-500.0,0.0003452,21]
[335483647,1724263849273,-500.0,0.0003452,21]
[335483648,1724263849282,-500.0,0.0003452,21]
[335483649,1724263849291,-500.0,0.0003452,21]
[335483650,1724263849300,-500.0,0.0003452,21]
[335483651,1724263849310,-500.0,0.0003452,21]
[335483652,1724263849319,-500.0,0.0003452,21]
[335483653,1724263849330,-500.0,0.0003452,21]
[335483654,1724263849340,-502.29022209,0.0003452,21]
[335483655,1724263849350,-500.0,0.0003452,21]
[335483656,1724263849359,-500.0,0.0003452,21]
[335483657,1724263849370,-500.0,0.0003452,21]
[335483658,1724263849380,-500.0,0.0003452,21]
[335483659,1724263849390,-500.0,0.0003452,21]
[335483660,1724263849401,-500.0,0.0003452,21]
[335483661,1724263849411,-500.0,0.0003452,21]
[335483662,1724263849421,-506.09466725,0.0003452,21]
[335483663,1724263849432,-500.0,0.0003452,21]
[335483664,1724263849442,-500.0,0.0003452,21]
[335483665,1724263849451,-500.0,0.0003452,21]
[335483666,1724263849462,-500.0,0.0003452,21]
[335483667,1724263849471,-500.0,0.0003452,21]
[335483668,1724263849481,-500.0,0.0003452,21]
[335483669,1724263849491,-500.0,0.0003452,21]
[335483670,1724263849501,-500.0,0.0003452,21]
[335483671,1724263849510,-500.0,0.0003452,21]
[335483672,1724263849519,-500.0,0.0003452,21]
[335483673,1724263849528,-492.18349507,0.0003452,21]
[335483674,1724263849537,-500.0,0.0003452,21]
[335483675,1724263849547,-500.0,0.0003452,21]
[335483676,1724263849557,-184.79127551,0.0003452,21]
[335483677,1724263849566,-500.0,0.0003452,21]
[335483678,1724263849576,-500.0,0.0003452,21]
[335483679,1724263849593,-500.0,0.0003452,21]
[335483680,1724263849602,-494.64,0.0003452,21]
[335483681,1724263849611,-500.0,0.0003452,21]
[335483682,1724263849621,-500.0,0.0003452,21]
[335483683,1724263849631,-500.0,0.0003452,21]
[335483684,1724263849641,-500.0,0.0003452,21]
[335483685,1724263849650,-500.0,0.0003452,21]
[335483686,1724263849659,-500.0,0.0003452,21]
[335483687,1724263849669,-500.0,0.0003452,21]
[335483688,1724263849679,-500.0,0.0003452,21]
[335483689,1724263849689,-500.0,0.0003452,21]
[335483690,1724263849700,-500.0,0.0003452,21]
[335483691,1724263849710,-500.0,0.0003452,21]
[335483692,1724263849721,-500.0,0.0003452,21]
[335483693,1724263849731,-500.0,0.0003452,21]
[335483694,1724263849741,-327.04,0.0003452,21]
[335483695,1724263849750,-500.0,0.0003452,21]
[335483696,1724263849760,-278.78,0.0003452,21]
[335483697,1724263849771,-500.0,0.0003452,21]
[335483698,1724263849785,-500.0,0.0003452,21]
[335483699,1724263849794,-500.0,0.0003452,21]
[335483700,1724263849803,-500.0,0.0003452,21]
[335483701,1724263849813,-500.0,0.0003452,21]
[335483702,1724263849822,-500.0,0.0003452,21]
[335483703,1724263849834,-500.0,0.0003452,21]
[335483704,1724263849843,-500.0,0.0003452,21]
[335483705,1724263849852,-500.0,0.0003452,21]
[335483706,1724263849861,-500.0,0.0003452,21]
[335483707,1724263849872,-500.0,0.0003452,21]
[335483708,1724263849882,-500.0,0.0003452,21]
[335483709,1724263849891,-500.0,0.0003452,21]
[335483710,1724263849900,-500.0,0.0003452,21]
[335483711,1724263849910,-500.0,0.0003452,21]
[335483712,1724263849920,-207.12,0.0003452,21]
[335483713,1724263849931,-500.0,0.0003452,21]
[335483714,1724263849941,-500.0,0.0003452,21]
[335483715,1724263849951,-500.0,0.0003452,21]
[335483716,1724263849961,-500.0,0.0003452,21]
[335483717,1724263849972,-500.0,0.0003452,21]
[335483718,1724263849982,-500.0,0.0003452,21]
[335483719,1724263849992,-382.46,0.0003452,21]
[335483720,1724263850001,-500.0,0.0003452,21]
[335483721,1724263850011,-622.82011096,0.0003452,21]
[335483722,1724263850019,-409.92208995,0.0003452,21]
[335483723,1724263855555,158.66615763,9.906e-05,2]
[335483724,1724263911373,3332.19467507,9.906e-05,2]
[335483725,1724263911617,217.18352706,9.906e-05,2]
[335483726,1724263928047,656.64881168,9.906e-05,2]
[335483727,1724263946365,218.08775075,9.906e-05,2]
[335483728,1724263970565,158.66615763,9.906e-05,2]
[335483729,1724264012868,341.50733323,9.906e-05,2]
[335483730,1724264020652,273.37336231,9.906e-05,2]
[335483731,1724264056061,158.66615763,9.906e-05,2]
[335483732,1724264174076,253.37858574,9.906e-05,2]
[335483734,1724264515266,8845.97303828,9.524e-05,2]
[335483735,1724264524287,851.03180948,9.899e-05,2]
[335483736,1724264528411,22775.58966832,9.524e-05,2]
[335483737,1724264535971,7014.77930494,9.524e-05,2]
[335483738,1724264542396,5490.52929893,9.524e-05,2]
[335483740,1724264551185,7014.77930494,9.524e-05,2]
[335483741,1724264555437,11652.95700033,9.838e-05,2]
[335483745,1724264569356,9661.21518978,9.524e-05,2]
[335483746,1724264575009,166.882545,9.106e-05,2]
[335483747,1724264575217,166.882545,9.115e-05,2]
[335483748,1724264575447,166.882545,9.124e-05,2]
[335483749,1724264575690,166.882545,9.133e-05,2]
[335483750,1724264575884,166.882545,9.142e-05,2]
[335483751,1724264576118,166.882545,9.151e-05,2]
[335483753,1724264580428,1151.83495537,9.899e-05,2]
[335483754,1724264581097,304.54156935,9.524e-05,2]
[335483755,1724264590667,2282.92421799,9.899e-05,3]
[335483756,1724264591347,154.79103211,9.524e-05,2]
[335483757,1724264593305,2143.22745307,9.899e-05,2]
[335483758,1724264604750,2713.12344355,9.899e-05,2]
[335483760,1724264626188,3093.28626151,9.899e-05,2]
[335483762,1724264654448,518.68468753,9.899e-05,2]
[335483763,1724264656891,811.55198591,9.899e-05,2]
[335483766,1724264691870,250.0,9.66e-05,2]
[335483767,1724264691957,250.0,9.687e-05,2]
[335483768,1724264692188,250.0,9.713e-05,2]
[335483769,1724264692512,250.0,9.74e-05,2]
[335483770,1724264692760,250.0,9.766e-05,2]
[335483771,1724264693003,250.0,9.793e-05,2]
[335483772,1724264693216,250.0,9.819e-05,2]
[335483773,1724264693452,250.0,9.846e-05,2]
[335483774,1724264693690,250.0,9.872e-05,2]
[335483775,1724264693933,250.0,9.899e-05,2]
[335483776,1724264706605,569.66960368,9.899e-05,2]
[335483777,1724264707265,156.84410561,9.899e-05,2]
[335483778,1724264710645,601.83952763,9.899e-05,2]
[335483779,1724264710946,155.22821248,9.899e-05,2]
[335483780,1724264715682,1500.0,9.899e-05,2]
[335483781,1724264730000,154.77557542,9.899e-05,2]
[335483785,1724264765108,1387.9529976,9.173e-05,2]
[335483786,1724264774878,320.18507713,9.899e-05,2]
[335483788,1724264803607,453.58113321,9.899e-05,2]
[335483789,1724264826894,188.58516866,9.899e-05,2]
[335483790,1724264835278,24900.0,9.374e-05,2]
[335483791,1724264873576,665.59514245,9.899e-05,2]
[335483792,1724264875158,408.92946582,9.899e-05,2]
[335483793,1724264877699,154.980302,9.899e-05,2]
[335483794,1724264877735,154.92779168,9.899e-05,2]
[335483795,1724264880905,526.28132008,9.899e-05,2]
[335483796,1724264921341,181.22986714,9.899e-05,2]
[335483797,1724264928995,521.41855438,9.899e-05,2]
[335483798,1724264931940,810.8243326,9.899e-05,2]
[335483799,1724264935683,8845.97303828,9.524e-05,2]
[335483800,1724264963145,-250.0,9.925e-05,2]
[335483801,1724264963170,-106.63625243,9.939e-05,2]
[335483806,1724264978664,154.74467129,9.899e-05,2]
[335483807,1724265001867,9661.21518978,9.524e-05,2]
[335483848,1724265032444,-823.0,9.939e-05,2]
[335483849,1724265032457,-27.53777509,9.939e-05,2]
[335483850,1724265032468,-336.16312885,9.939e-05,2]
[335483851,1724265032486,-198.74833138,9.939e-05,2]
[335483852,1724265032496,-250.0,9.952e-05,2]
[335483853,1724265032508,-300.0,9.977e-05,2]
[335483854,1724265032518,-250.0,9.978e-05,2]
[335483855,1724265032531,-405.88698024,9.999e-05,3]
[335483856,1724265032542,-817.69256856,0.0001,2]
[335483857,1724265032552,-413.74889628,0.0001,2]
[335483858,1724265032562,-250.0,0.00010005,2]
[335483859,1724265032573,-250.0,0.00010031,2]
[335483860,1724265032583,-250.0,0.00010058,2]
[335483861,1724265032593,-300.0,0.0001008,2]
[335483862,1724265032604,-250.0,0.00010084,2]
[335483863,1724265032617,-250.0,0.00010111,2]
[335483864,1724265032627,-250.0,0.00010137,2]
[335483865,1724265032637,-250.0,0.00010164,2]
[335483866,1724265032647,-204.38896084,0.0001026,2]
[335483867,1724265032657,-933.99147562,0.00010544,2]
[335483868,1724265032667,-2713.12344355,0.00010544,2]
[335483869,1724265032676,-301.59897552,0.00010739,2]
[335483870,1724265032690,-3093.28626151,0.00010739,2]
[335483871,1724265032700,-156.64490896,0.00010858,2]
[335483872,1724265032710,-258.74,0.00010959,2]
[335483873,1724265032719,-215.62,0.00010959,2]
[335483874,1724265032729,-179.68,0.00010959,2]
[335483875,1724265032739,-420.0,0.00010975,2]
[335483876,1724265032749,-420.0,0.00011088,2]
[335483877,1724265032759,-357.693327,0.00011409,2]
[335483878,1724265032769,-740.89300917,0.00011544,2]
[335483879,1724265032779,-688.676981,0.00011544,2]
[335483880,1724265032788,-160.44466579,0.00011544,2]
[335483881,1724265032799,-315.28171377,0.00011544,2]
[335483882,1724265032809,-196.81150092,0.00011544,2]
[335483883,1724265032820,-421.51336898,0.00011544,2]
[335483884,1724265032830,-188.56371582,0.00011544,2]
[335483885,1724265032841,-520.74499597,0.00011544,2]
[335483886,1724265032853,-174.83511409,0.00011544,2]
[335483887,1724265032865,-290.65712697,0.00011544,2]
[335483888,1724265032877,-295.49163133,0.00011544,2]
[335483889,1724265032888,-320.27103328,0.00011544,2]
[335483890,1724265032898,-210.23989812,0.00011544,2]
[335483891,1724265032908,-544.00882293,0.00011544,2]
[335483892,1724265032918,-404.43330921,0.00011544,2]
[335483893,1724265032930,-376.88478434,0.00011621,2]
[335483894,1724265032940,-1500.0,0.00011712,2]
[335483895,1724265032949,-242.79688404,0.00011712,2]
[335483896,1724265032959,-665.47405721,0.00011894,2]
[335483897,1724265032970,-1766.30882102,0.00011987,2]
[335483898,1724265032980,-521.41855438,0.00011987,2]
[335483899,1724265032989,-1671.09905936,0.00012007,2]
[335483900,1724265032999,-154.79103211,0.00012007,2]
[335483901,1724265033010,-154.77557542,0.00012007,2]
[335483902,1724265033020,-587.0,0.00012073,2]
[335483903,1724265033030,-587.0,0.00012195,2]
[335483904,1724265033040,-396.30857781,0.000123,2]
[335483905,1724265033050,-4033.96235594,0.000125,2]
[335483933,1724265038498,-1855.57374104,9.939e-05,2]
[335483943,1724265038585,-5159.2055639,9.939e-05,2]
[335483945,1724265038595,-301.59897552,0.00010544,2]
[335483947,1724265038606,-372.10661726,0.00011544,2]
[335483949,1724265038620,-2143.22745307,0.00011544,2]
[335483951,1724265038630,-3888.39969369,0.000125,2]
[335483952,1724265038639,-12999.90021059,0.000129,2]
[335483953,1724265038651,-2169.89484027,0.000129,2]
[335483954,1724265038662,-12455.96301434,0.000129,2]
[335483955,1724265038671,-4893.87459826,0.000129,2]
[335483956,1724265038680,-493.41512582,0.0001295,2]
[335483957,1724265038690,-154.74467129,0.00012985,2]
[335483958,1724265038699,-862.64603536,0.00013,2]
[335483959,1724265038708,-154.74467129,0.00013025,2]
[335483960,1724265038717,-823.0,0.0001328,2]
[335483961,1724265038726,-655.0,0.00013414,2]
[335483962,1724265038735,-11.54429363,0.00013496,2]
[335483965,1724265038747,-146.59465666,0.00013496,2]
[335483968,1724265038756,-6938.58325129,0.00013598,2]
[335483969,1724265038765,-200.0,0.00013599,2]
[335483971,1724265038774,-500.0,0.00013673,2]
[335483972,1724265038783,-500.0,0.00013673,2]
[335483973,1724265038793,-106728.944224,0.00013688,2]
[335483974,1724265038802,-106728.944224,0.00013689,2]
[335483975,1724265038811,-450.52947441,0.00013698,2]
[335483976,1724265038828,-500.0,0.00013698,2]
[335483977,1724265038840,-500.0,0.00013698,2]
[335483978,1724265038849,-500.0,0.00013698,2]
[335483979,1724265038862,-500.0,0.00013698,2]
[335483980,1724265038872,-500.0,0.00013698,2]
[335483981,1724265038881,-500.0,0.00013698,2]
[335483983,1724265038891,-500.0,0.00013698,2]
[335483985,1724265038900,-500.0,0.00013698,2]
[335483987,1724265038910,-500.0,0.00013698,2]
[335483989,1724265038920,-321.5017058,0.00013698,2]
[335483991,1724265038930,-235.39085473,0.00013698,2]
[335483993,1724265038940,-500.0,0.00013698,2]
[335483995,1724265038950,-500.0,0.00013698,2]
[335483997,1724265038960,-500.0,0.00013698,2]
[335483999,1724265038970,-500.0,0.00013698,2]
[335484001,1724265038981,-500.0,0.00013698,2]
[335484003,1724265038991,-500.0,0.00013698,2]
[335484005,1724265039001,-500.0,0.00013698,2]
[335484007,1724265039011,-500.0,0.00013698,2]
[335484009,1724265039021,-500.0,0.00013698,2]
[335484011,1724265039032,-500.0,0.00013698,2]
[335484013,1724265039042,-500.0,0.00013698,2]
[335484015,1724265039051,-500.0,0.00013698,2]
[335484017,1724265039061,-500.0,0.00013698,2]
[335484019,1724265039070,-500.0,0.00013698,2]
[335484021,1724265039080,-472.6006901,0.00013698,2]
[335484023,1724265039091,-500.0,0.00013698,2]
[335484025,1724265039102,-500.0,0.00013698,2]
[335484027,1724265039115,-750.0,0.00013698,2]
[335484029,1724265039125,-310.95814686,0.00013698,2]
[335484031,1724265039135,-500.0,0.00013698,2]
[335484033,1724265039145,-500.0,0.00013698,2]
[335484034,1724265039155,-500.0,0.00013698,2]
[335484035,1724265039166,-500.0,0.00013698,2]
[335484036,1724265039179,-500.0,0.00013698,2]
[335484037,1724265039189,-500.0,0.00013698,2]
[335484038,1724265039198,-632.17439947,0.00013698,2]
[335484039,1724265039209,-153.69977451,0.00013698,2]
[335484040,1724265039219,-360.09873564,0.00013698,2]
[335484041,1724265039228,-602.91315354,0.00013698,2]
[335484042,1724265039238,-530.3383166,0.00013698,2]
[335484043,1724265039252,-3000.0,0.00013699,2]
[335484044,1724265039262,-4424.1224189,0.00013699,2]
[335484045,1724265039272,-2728.1621043,0.00013699,2]
[335484046,1724265039283,-2616.083505,0.00013699,2]
[335484047,1724265039293,-500.0,0.00013699,2]
[335484048,1724265039303,-500.0,0.00013699,2]
[335484049,1724265039312,-651.81765425,0.00013699,2]
[335484050,1724265039322,-500.0,0.00013699,2]
[335484051,1724265039332,-500.0,0.00013699,2]
[335484052,1724265039342,-500.0,0.00013699,2]
[335484053,1724265039352,-500.0,0.00013699,2]
[335484054,1724265039364,-500.0,0.00013699,2]
[335484055,1724265039373,-500.0,0.00013699,2]
[335484056,1724265039383,-500.0,0.00013699,2]
[335484057,1724265039393,-500.0,0.00013699,2]
[335484058,1724265039402,-500.0,0.00013699,2]
[335484059,1724265039412,-500.0,0.00013699,2]
[335484060,1724265039421,-500.0,0.00013699,2]
[335484061,1724265039431,-500.0,0.00013699,2]
[335484062,1724265039441,-500.0,0.00013699,2]
[335484063,1724265039454,-500.0,0.00013699,2]
[335484064,1724265039464,-500.0,0.00013699,2]
[335484065,1724265039473,-500.0,0.00013699,2]
[335484066,1724265039483,-500.0,0.00013699,2]
[335484067,1724265039493,-500.0,0.00013699,2]
[335484068,1724265039504,-500.0,0.00013699,2]
[335484069,1724265039514,-500.0,0.00013699,2]
[335484070,1724265039524,-500.0,0.00013699,2]
[335484071,1724265039533,-500.0,0.00013699,2]
[335484072,1724265039543,-500.0,0.00013699,2]
[335484073,1724265039553,-500.0,0.00013699,2]
[335484074,1724265039563,-500.0,0.00013699,2]
[335484075,1724265039574,-500.0,0.00013699,2]
[335484076,1724265039584,-500.0,0.00013699,2]
[335484077,1724265039594,-500.0,0.00013699,2]
[335484078,1724265039604,-500.0,0.00013699,2]
[335484079,1724265039616,-500.0,0.00013699,2]
[335484080,1724265039626,-500.0,0.00013699,2]
[335484081,1724265039635,-500.0,0.00013699,2]
[335484082,1724265039646,-500.0,0.00013699,2]
[335484083,1724265039656,-500.0,0.00013699,2]
[335484084,1724265039666,-208.7603936,0.00013699,2]
[335484085,1724265039678,-500.0,0.00013699,2]
[335484086,1724265039687,-500.0,0.00013699,2]
[335484087,1724265039697,-500.0,0.00013699,2]
[335484088,1724265039707,-500.0,0.00013699,2]
[335484089,1724265039716,-500.0,0.00013699,2]
[335484090,1724265039726,-500.0,0.00013699,2]
[335484091,1724265039736,-194.85160042,0.00013699,2]
[335484092,1724265039746,-500.0,0.00013699,2]
[335484093,1724265039756,-500.0,0.00013699,2]
[335484094,1724265039765,-500.0,0.00013699,2]
[335484095,1724265039774,-500.0,0.00013699,2]
[335484096,1724265039784,-500.0,0.00013699,2]
[335484097,1724265039794,-500.0,0.00013699,2]
[335484098,1724265039804,-500.0,0.00013699,2]
[335484099,1724265039814,-350.0,0.00013699,2]
[335484100,1724265039824,-834.56865513,0.00013699,2]
[335484101,1724265039834,-834.56865513,0.00013699,2]
[335484102,1724265039844,-834.56865513,0.00013699,2]
[335484103,1724265039854,-834.56865513,0.00013699,2]
[335484104,1724265039867,-834.56865513,0.00013699,2]
[335484105,1724265039877,-834.56865513,0.00013699,2]
[335484106,1724265039887,-834.56865513,0.00013699,2]
[335484107,1724265039897,-834.56865513,0.00013699,2]
[335484108,1724265039911,-834.56865513,0.00013699,2]
[335484109,1724265039921,-834.56865513,0.00013699,2]
[335484110,1724265039932,-834.56865513,0.00013699,2]
[335484111,1724265039942,-834.56865513,0.00013699,2]
[335484112,1724265039952,-834.56865513,0.00013699,2]
[335484113,1724265039962,-834.56865513,0.00013699,2]
[335484114,1724265039972,-834.56865513,0.00013699,2]
[335484115,1724265039982,-834.56865513,0.00013699,2]
[335484116,1724265039992,-834.56865513,0.00013699,2]
[335484117,1724265040003,-834.56865513,0.00013699,2]
[335484118,1724265040015,-834.56865513,0.00013699,2]
[335484119,1724265040026,-834.56865513,0.00013699,2]
[335484120,1724265040037,-834.56865513,0.00013699,2]
[335484121,1724265040048,-834.56865513,0.00013699,2]
[335484122,1724265040060,-834.56865513,0.00013699,2]
[335484123,1724265040070,-834.56865513,0.00013699,2]
[335484124,1724265040081,-834.56865513,0.00013699,2]
[335484125,1724265040091,-834.56865513,0.00013699,2]
[335484126,1724265040101,-834.56865513,0.00013699,2]
[335484127,1724265040113,-834.56865513,0.00013699,2]
[335484128,1724265040123,-834.56865513,0.00013699,2]
[335484129,1724265040133,-834.56865513,0.00013699,2]
[335484131,1724265040143,-834.56865513,0.00013699,2]
[335484132,1724265040154,-834.56865513,0.00013699,2]
[335484133,1724265040166,-834.56865513,0.00013699,2]
[335484134,1724265040179,-834.56865513,0.00013699,2]
[335484135,1724265040190,-959.56865508,0.00013699,2]
[335484136,1724265040201,-959.56865508,0.00013699,2]
[335484137,1724265040213,-959.56865508,0.00013699,2]
[335484138,1724265040223,-959.56865508,0.00013699,2]
[335484139,1724265040233,-309.52024362,0.00014,2]
[335484140,1724265040245,-20720.08439048,0.00014,4]
[335484141,1724265040260,-1000.0,0.00014221,2]
[335484142,1724265040272,-901.00984614,0.00014221,2]
[335484143,1724265040283,-232.923187,0.00014247,2]
[335484144,1724265040294,-189.833668,0.00014247,2]
[335484145,1724265040305,-178.899999,0.00014247,2]
[335484146,1724265040315,-154.74467129,0.00014519,2]
[335484147,1724265040325,-1152.0,0.00014608,2]
[335484148,1724265040336,-4893.87459821,0.00014861,2]
[335484149,1724265040346,-1110.9613583,0.00015,2]
[335484150,1724265040356,-953.53947811,0.00015,2]
[335484151,1724265040367,-782.718708,0.00015,2]
[335484152,1724265040377,-309.388957,0.00015,2]
[335484153,1724265040387,-154.76012181,0.00015,2]
[335484154,1724265040397,-245.76075924,0.00015,2]
[335484155,1724265040408,-1500.0,0.00015119,2]
[335484156,1724265040419,-6938.58325128,0.00015174,2]
[335484157,1724265040429,-161.666965,0.000153,2]
[335484158,1724265040439,-799.17610336,0.000159,2]
[335484159,1724265040450,-401.28991957,0.00015973,2]
[335484160,1724265040460,-500.0,0.00015973,2]
[335484161,1724265040471,-500.0,0.00015973,2]
[335484162,1724265040481,-500.0,0.00015973,2]
[335484164,1724265040492,-500.0,0.00015973,2]
[335484165,1724265040501,-213457.888447,0.0001599,2]
[335484167,1724265040513,-154.78071732,0.00016,2]
[335484168,1724265040523,-68448.37121474,0.00016,2]
[335484169,1724265040535,-1613.0,0.00016069,2]
[335484170,1724265040546,-871.3542348,0.00016224,2]
[335484171,1724265040557,-277.68803325,0.000165,2]
[335484172,1724265040567,-150.112233,0.000165,2]
[335484173,1724265040579,-161.32016401,0.00016521,2]
[335484174,1724265040589,-1000.0,0.00016521,2]
[335484176,1724265040600,-902.74190216,0.00016521,2]
[335484177,1724265040610,-301.4765779,0.00016521,2]
[335484178,1724265040624,-6938.58325128,0.00016749,2]
[335484179,1724265040634,-309.4040431,0.00017,2]
[335484180,1724265040643,-755.34357061,0.0001706,2]
[335484181,1724265040654,-1500.0,0.00017419,2]
[335484182,1724265040664,-150.112233,0.000176,2]
[335484183,1724265040675,-1991.50485113,0.000176,2]
[335484185,1724265040685,-2258.0,0.00017675,2]
[335484187,1724265040695,-10343.5134042,0.00017898,2]
[335484188,1724265040706,-479.51717853,0.00017913,2]
[335484189,1724265040715,-799.17610335,0.00018011,2]
[335484190,1724265040726,-4893.87459821,0.00018201,2]
[335484191,1724265040736,-6938.58325128,0.00018325,2]
[335484192,1724265040746,-15958.96024021,0.00018447,2]
[335484193,1724265040756,-2000.0,0.00018524,2]
[335484194,1724265040766,-500.0,0.00018651,2]
[335484196,1724265040777,-150.112233,0.000188,2]
[335484197,1724265040789,-465.72585893,0.00018809,2]
[335484198,1724265040800,-606.72067983,0.00019,2]
[335484199,1724265040810,-186.58276462,0.000191,2]
[335484200,1724265040820,-500.0,0.00019178,2]
[335484201,1724265040831,-500.0,0.00019178,2]
[335484202,1724265040842,-500.0,0.00019178,2]
[335484203,1724265040854,-500.0,0.00019178,2]
[335484204,1724265040869,-491.17327954,0.00019178,2]
[335484205,1724265040880,-500.0,0.00019178,2]
[335484206,1724265040890,-332.35258661,0.00019178,2]
[335484207,1724265040902,-165.177485,0.00019178,2]
[335484208,1724265040912,-160.344481,0.00019178,2]
[335484209,1724265040922,-251.0,0.00019178,2]
[335484210,1724265040934,-187.0,0.00019443,2]
[335484211,1724265040945,-154.76012181,0.00019452,2]
[335484212,1724265040955,-500.0,0.00019633,2]
[335484213,1724265040966,-465.03629295,0.0001975,2]
[335484214,1724265040976,-2500.0,0.00019789,2]
[335484215,1724265040986,-88888.0,0.0001989,2]
[335484216,1724265040996,-150.112233,0.000199,2]
[335484217,1724265041006,-6938.58325128,0.000199,2]
[335484218,1724265041018,-258.85080897,0.00019973,2]
[335484219,1724265041028,-286536.10212643,0.0001999,2]
[335484220,1724265041038,-28900.5901179,0.00019999,30]
[335484222,1724265041050,-285.48087373,0.0002,2]
[335484225,1724265041063,-226.13158555,0.0002,2]
[335484226,1724265041073,-126513.3262371,0.0002,2]
[335484227,1724265041083,-183.32510841,0.0002,2]
[335484228,1724265041095,-287.17173053,0.0002,2]
[335484229,1724265041106,-10513.28749774,0.0002,2]
[335484230,1724265041118,-435.0,0.0002,2]
[335484231,1724265041129,-156.66298998,0.0002,2]
[335484232,1724265041139,-1038.26329059,0.0002,2]
[335484233,1724265041150,-154.76012181,0.0002,2]
[335484234,1724265041161,-172.08510632,0.0002,2]
[335484235,1724265041179,-4093.99724662,0.0002,2]
[335484236,1724265041190,-5327.81921818,0.0002,2]
[335484237,1724265041199,-221.04,0.0002,2]
[335484238,1724265041211,-2413.06,0.0002,2]
[335484239,1724265041223,-437.15,0.0002,2]
[335484240,1724265041232,-44945.35552353,0.0002,2]
[335484241,1724265041243,-10055.12489044,0.0002,2]
[335484242,1724265041253,-4291.56646056,0.0002,2]
[335484243,1724265041263,-799.17610335,0.00020122,2]
[335484244,1724265041274,-116963.81079083,0.00020377,2]
[335484245,1724265041284,-151.0,0.00020377,2]
[335484246,1724265041294,-151.0,0.00020377,2]
[335484247,1724265041304,-151.0,0.00020377,2]
[335484248,1724265041314,-2616.083505,0.00020548,2]
[335484249,1724265041323,-500.0,0.00020666,2]